Workbook

Sheet SentimentConfig
A1: ID | B1: name | D1: icon | E1: icon_Text | F1: mainSentimentEffect | G1: sentimentEffect
A2: int | B2: int | D2: string | E2: string | F2: int | G2: int[]
A4: modelID | B4: 名称 | D4: 图片 | E4: 图片 | F4: 核心感悟点 | G4: 支线感悟点
A5: 1 | B5: 3078 | C5: 逍遥自在 | D5: icon_xinjing1 | E5: icon_xinjing1 | F5: 1 | G5: =_xlfn.TEXTJOIN(";",1,H5:M5) -> 111;112;113;114;115;116 | H5: 111 | I5: 112 | J5: 113 | K5: 114 | L5: 115 | M5: 116
A6: 2 | B6: 3079 | C6: 万法归一 | D6: icon_xinjing2 | E6: icon_xinjing2 | F6: 2 | G6: =_xlfn.TEXTJOIN(";",1,H6:M6) -> 121;122;123;124;125;126 | H6: 121 | I6: 122 | J6: 123 | K6: 124 | L6: 125 | M6: 126
A7: 3 | B7: 3080 | C7: 出神入化 | D7: icon_xinjing3 | E7: icon_xinjing3 | F7: 3 | G7: 131;132;133;134;135;136 | H7: 131 | I7: 132 | J7: 133 | K7: 134 | L7: 135 | M7: 136
A8: 4 | B8: 3081 | C8: 无我无相 | D8: icon_xinjing4 | E8: icon_xinjing4 | F8: 4 | G8: 141;142;143;144;145;146 | H8: 141 | I8: 142 | J8: 143 | K8: 144 | L8: 145 | M8: 146
A9: 5 | B9: 3082 | C9: 天人合一 | D9: icon_xinjing5 | E9: icon_xinjing5 | F9: 5 | G9: 151;152;153;154;155;156 | H9: 151 | I9: 152 | J9: 153 | K9: 154 | L9: 155 | M9: 156
A10: 6 | B10: 3083 | C10: 超脱生死 | D10: icon_xinjing6 | E10: icon_xinjing6 | F10: 6 | G10: 161;162;163;164;165;166 | H10: 161 | I10: 162 | J10: 163 | K10: 164 | L10: 165 | M10: 166
A11: 7 | B11: 3084 | C11: 无为至尊 | D11: icon_xinjing7 | E11: icon_xinjing7 | F11: 7 | G11: 171;172;173;174;175;176 | H11: 171 | I11: 172 | J11: 173 | K11: 174 | L11: 175 | M11: 176

Sheet SentimentEffectConfig
A1: ID | B1: groupId | C1: level | D1: name | F1: icon | G1: massge | I1: pos | J1: lastSentimentEffectId | K1: unlockLevel | L1: effectType | M1: effectVale | N1: upConstItemId | O1: upConstCount
A2: int | B2: int | C2: int | D2: int | F2: string | G2: int | I2: int | J2: int | K2: int | L2: int | M2: int[] | N2: int | O2: int
A4: modelID | B4: id组 | C4: 等级 | D4: 名字 | F4: 图标 | G4: 描述 | I4: 位置 | J4: 前置条件 （-1是主属性） | K4: 解锁等级 | L4: 见条件类型表 | M4: 效果值 | N4: 消耗 | O4: 消耗数量
A5: =B5*10+C5 -> 11 | B5: 1 | C5: 1 | D5: 3085 | E5: =CONCATENATE("主感悟-",B5) -> 主感悟-1 | F5: icon | G5: 3134 | H5: 星辰道可以获得充能，充能满后启动星辰道，转盘速度增加10% | L5: 99 | M5: 60101 | N5: 1001 | O5: 1 | Q5: 3085 | R5: 3134
A6: =B6*10+C6 -> 12 | B6: 1 | C6: 2 | D6: 3085 | E6: =CONCATENATE("主感悟-",B6) -> 主感悟-1 | F6: icon | G6: 3134 | L6: 99 | M6: 60101 | N6: 1001 | O6: 1 | Q6: 3085 | R6: 3134
A7: 13 | B7: 1 | C7: 3 | D7: 3085 | E7: 主感悟-1 | F7: icon | G7: 3134 | L7: 99 | M7: 60101 | N7: 1001 | O7: 1 | Q7: 3085 | R7: 3134
A8: 14 | B8: 1 | C8: 4 | D8: 3085 | E8: 主感悟-1 | F8: icon | G8: 3134 | L8: 99 | M8: 60101 | N8: 1001 | O8: 1 | Q8: 3085 | R8: 3134
A9: 15 | B9: 1 | C9: 5 | D9: 3085 | E9: 主感悟-1 | F9: icon | G9: 3134 | L9: 99 | M9: 60101 | N9: 1001 | O9: 1 | Q9: 3085 | R9: 3134
A11: =B11*10+C11 -> 21 | B11: =B5+1 -> 2 | C11: 1 | D11: =D5+1 -> 3086 | E11: =CONCATENATE("主感悟-",B11) -> 主感悟-2 | F11: icon | G11: =G5+1 -> 3135 | H11: 启动期间功法在对碰时受到的克制影响降低80% | L11: 99 | M11: =M5+1 -> 60102 | N11: 1001 | O11: 1 | Q11: =Q5+1 -> 3086 | R11: =R5+1 -> 3135
A12: =B12*10+C12 -> 22 | B12: =B6+1 -> 2 | C12: 2 | D12: =D6+1 -> 3086 | E12: =CONCATENATE("主感悟-",B12) -> 主感悟-2 | F12: icon | G12: =G6+1 -> 3135 | L12: 99 | M12: =M6+1 -> 60102 | N12: 1001 | O12: 1 | Q12: =Q6+1 -> 3086 | R12: 3135
A13: 23 | B13: 2 | C13: 3 | D13: 3086 | E13: 主感悟-2 | F13: icon | G13: 3135 | L13: 99 | M13: 60102 | N13: 1001 | O13: 1 | Q13: 3086 | R13: 3135
A14: 24 | B14: 2 | C14: 4 | D14: 3086 | E14: 主感悟-2 | F14: icon | G14: 3135 | L14: 99 | M14: 60102 | N14: 1001 | O14: 1 | Q14: 3086 | R14: 3135
A15: 25 | B15: 2 | C15: 5 | D15: 3086 | E15: 主感悟-2 | F15: icon | G15: 3135 | L15: 99 | M15: 60102 | N15: 1001 | O15: 1 | Q15: 3086 | R15: 3135
A17: =B17*10+C17 -> 31 | B17: =B11+1 -> 3 | C17: 1 | D17: =D11+1 -> 3087 | E17: =CONCATENATE("主感悟-",B17) -> 主感悟-3 | F17: icon | G17: =G11+1 -> 3136 | H17: 启动期间没使用一个功法生命恢复2% | L17: 99 | M17: =M11+1 -> 60103 | N17: 1001 | O17: 1 | Q17: =Q11+1 -> 3087 | R17: =R11+1 -> 3136
A18: =B18*10+C18 -> 32 | B18: =B12+1 -> 3 | C18: 2 | D18: =D12+1 -> 3087 | E18: =CONCATENATE("主感悟-",B18) -> 主感悟-3 | F18: icon | G18: =G12+1 -> 3136 | L18: 99 | M18: =M12+1 -> 60103 | N18: 1001 | O18: 1 | Q18: =Q12+1 -> 3087 | R18: 3136
A19: 33 | B19: 3 | C19: 3 | D19: 3087 | E19: 主感悟-3 | F19: icon | G19: 3136 | L19: 99 | M19: 60103 | N19: 1001 | O19: 1 | Q19: 3087 | R19: 3136
A20: 34 | B20: 3 | C20: 4 | D20: 3087 | E20: 主感悟-3 | F20: icon | G20: 3136 | L20: 99 | M20: 60103 | N20: 1001 | O20: 1 | Q20: 3087 | R20: 3136
A21: 35 | B21: 3 | C21: 5 | D21: 3087 | E21: 主感悟-3 | F21: icon | G21: 3136 | L21: 99 | M21: 60103 | N21: 1001 | O21: 1 | Q21: 3087 | R21: 3136
A23: =B23*10+C23 -> 41 | B23: =B17+1 -> 4 | C23: 1 | D23: =D17+1 -> 3088 | E23: =CONCATENATE("主感悟-",B23) -> 主感悟-4 | F23: icon | G23: =G17+1 -> 3137 | H23: 星辰道启动期间释放的功法带有星辰之力，对敌人额外照成30%当前伤害 | L23: 99 | M23: =M17+1 -> 60104 | N23: 1001 | O23: 1 | Q23: =Q17+1 -> 3088 | R23: =R17+1 -> 3137
A24: =B24*10+C24 -> 42 | B24: =B18+1 -> 4 | C24: 2 | D24: =D18+1 -> 3088 | E24: =CONCATENATE("主感悟-",B24) -> 主感悟-4 | F24: icon | G24: =G18+1 -> 3137 | L24: 99 | M24: =M18+1 -> 60104 | N24: 1001 | O24: 1 | Q24: =Q18+1 -> 3088 | R24: 3137
A25: 43 | B25: 4 | C25: 3 | D25: 3088 | E25: 主感悟-4 | F25: icon | G25: 3137 | L25: 99 | M25: 60104 | N25: 1001 | O25: 1 | Q25: 3088 | R25: 3137
A26: 44 | B26: 4 | C26: 4 | D26: 3088 | E26: 主感悟-4 | F26: icon | G26: 3137 | L26: 99 | M26: 60104 | N26: 1001 | O26: 1 | Q26: 3088 | R26: 3137
A27: 45 | B27: 4 | C27: 5 | D27: 3088 | E27: 主感悟-4 | F27: icon | G27: 3137 | L27: 99 | M27: 60104 | N27: 1001 | O27: 1 | Q27: 3088 | R27: 3137
A29: =B29*10+C29 -> 51 | B29: =B23+1 -> 5 | C29: 1 | D29: =D23+1 -> 3089 | E29: =CONCATENATE("主感悟-",B29) -> 主感悟-5 | F29: icon | G29: =G23+1 -> 3138 | H29: 星辰之力打中敌人后，为期注入星辰印记，在星辰道结束时结算，没3层印记受到20%伤害 | L29: 99 | M29: =M23+1 -> 60105 | N29: 1001 | O29: 1 | Q29: =Q23+1 -> 3089 | R29: =R23+1 -> 3138
A30: =B30*10+C30 -> 52 | B30: =B24+1 -> 5 | C30: 2 | D30: =D24+1 -> 3089 | E30: =CONCATENATE("主感悟-",B30) -> 主感悟-5 | F30: icon | G30: =G24+1 -> 3138 | L30: 99 | M30: =M24+1 -> 60105 | N30: 1001 | O30: 1 | Q30: =Q24+1 -> 3089 | R30: 3138
A31: 53 | B31: 5 | C31: 3 | D31: 3089 | E31: 主感悟-5 | F31: icon | G31: 3138 | L31: 99 | M31: 60105 | N31: 1001 | O31: 1 | Q31: 3089 | R31: 3138
A32: 54 | B32: 5 | C32: 4 | D32: 3089 | E32: 主感悟-5 | F32: icon | G32: 3138 | L32: 99 | M32: 60105 | N32: 1001 | O32: 1 | Q32: 3089 | R32: 3138
A33: 55 | B33: 5 | C33: 5 | D33: 3089 | E33: 主感悟-5 | F33: icon | G33: 3138 | L33: 99 | M33: 60105 | N33: 1001 | O33: 1 | Q33: 3089 | R33: 3138
A35: =B35*10+C35 -> 61 | B35: =B29+1 -> 6 | C35: 1 | D35: =D29+1 -> 3090 | E35: =CONCATENATE("主感悟-",B35) -> 主感悟-6 | F35: icon | G35: =G29+1 -> 3139 | H35: 死亡时恢复30%最大生命 | L35: 99 | M35: =M29+1 -> 60106 | N35: 1001 | O35: 1 | Q35: =Q29+1 -> 3090 | R35: =R29+1 -> 3139
A36: =B36*10+C36 -> 62 | B36: =B30+1 -> 6 | C36: 2 | D36: =D30+1 -> 3090 | E36: =CONCATENATE("主感悟-",B36) -> 主感悟-6 | F36: icon | G36: =G30+1 -> 3139 | L36: 99 | M36: =M30+1 -> 60106 | N36: 1001 | O36: 1 | Q36: =Q30+1 -> 3090 | R36: 3139
A37: 63 | B37: 6 | C37: 3 | D37: 3090 | E37: 主感悟-6 | F37: icon | G37: 3139 | L37: 99 | M37: 60106 | N37: 1001 | O37: 1 | Q37: 3090 | R37: 3139
A38: 64 | B38: 6 | C38: 4 | D38: 3090 | E38: 主感悟-6 | F38: icon | G38: 3139 | L38: 99 | M38: 60106 | N38: 1001 | O38: 1 | Q38: 3090 | R38: 3139
A39: 65 | B39: 6 | C39: 5 | D39: 3090 | E39: 主感悟-6 | F39: icon | G39: 3139 | L39: 99 | M39: 60106 | N39: 1001 | O39: 1 | Q39: 3090 | R39: 3139
A41: =B41*10+C41 -> 71 | B41: =B35+1 -> 7 | C41: 1 | D41: =D35+1 -> 3091 | E41: =CONCATENATE("主感悟-",B41) -> 主感悟-7 | F41: icon | G41: =G35+1 -> 3140 | H41: 死亡后星辰道不在运转，转而获得200%伤害加成 | L41: 99 | M41: =M35+1 -> 60107 | N41: 1001 | O41: 1 | Q41: =Q35+1 -> 3091 | R41: =R35+1 -> 3140
A42: =B42*10+C42 -> 72 | B42: =B36+1 -> 7 | C42: 2 | D42: =D36+1 -> 3091 | E42: =CONCATENATE("主感悟-",B42) -> 主感悟-7 | F42: icon | G42: =G36+1 -> 3140 | L42: 99 | M42: =M36+1 -> 60107 | N42: 1001 | O42: 1 | Q42: =Q36+1 -> 3091 | R42: 3140
A43: 73 | B43: 7 | C43: 3 | D43: 3091 | E43: 主感悟-7 | F43: icon | G43: 3140 | L43: 99 | M43: 60107 | N43: 1001 | O43: 1 | Q43: 3091 | R43: 3140
A44: 74 | B44: 7 | C44: 4 | D44: 3091 | E44: 主感悟-7 | F44: icon | G44: 3140 | L44: 99 | M44: 60107 | N44: 1001 | O44: 1 | Q44: 3091 | R44: 3140
A45: 75 | B45: 7 | C45: 5 | D45: 3091 | E45: 主感悟-7 | F45: icon | G45: 3140 | L45: 99 | M45: 60107 | N45: 1001 | O45: 1 | Q45: 3091 | R45: 3140
A47: =B47*10+C47 -> 1111 | B47: 111 | C47: 1 | D47: =D41+1 -> 3092 | E47: =CONCATENATE("感悟-",B47) -> 感悟-111 | F47: icon | G47: =G41+1 -> 3141 | H47: 攻击+2% | I47: 1 | J47: -1 | K47: 1 | L47: 1 | M47: 2 | N47: 22001 | O47: 1 | Q47: =Q41+1 -> 3092 | R47: =R41+1 -> 3141
A48: =B48*10+C48 -> 1112 | B48: 111 | C48: 2 | D48: =D42+1 -> 3092 | E48: =CONCATENATE("感悟-",B48) -> 感悟-111 | F48: icon | G48: =G42+1 -> 3141 | I48: 1 | J48: -1 | K48: 1 | L48: 1 | M48: 3 | N48: 22001 | O48: 1 | Q48: =Q42+1 -> 3092 | R48: 3141
A49: 1113 | B49: 111 | C49: 3 | D49: 3092 | E49: 感悟-111 | F49: icon | G49: 3141 | I49: 1 | J49: -1 | K49: 1 | L49: 1 | M49: 4 | N49: 22001 | O49: 1 | Q49: 3092 | R49: 3141
A50: 1114 | B50: 111 | C50: 4 | D50: 3092 | E50: 感悟-111 | F50: icon | G50: 3141 | I50: 1 | J50: -1 | K50: 1 | L50: 1 | M50: 5 | N50: 22001 | O50: 1 | Q50: 3092 | R50: 3141
A51: 1115 | B51: 111 | C51: 5 | D51: 3092 | E51: 感悟-111 | F51: icon | G51: 3141 | I51: 1 | J51: -1 | K51: 1 | L51: 1 | M51: 6 | N51: 22001 | O51: 1 | Q51: 3092 | R51: 3141
A53: =B53*10+C53 -> 1121 | B53: =B47+1 -> 112 | C53: 1 | D53: =D47+1 -> 3093 | E53: =CONCATENATE("感悟-",B53) -> 感悟-112 | F53: icon | G53: =G47+1 -> 3142 | H53: 最终伤害抵抗+1% | I53: 2 | J53: -1 | K53: 2 | L53: 6 | M53: 2 | N53: 22001 | O53: 1 | Q53: =Q47+1 -> 3093 | R53: =R47+1 -> 3142
A54: =B54*10+C54 -> 1122 | B54: =B48+1 -> 112 | C54: 2 | D54: =D48+1 -> 3093 | E54: =CONCATENATE("感悟-",B54) -> 感悟-112 | F54: icon | G54: =G48+1 -> 3142 | I54: 2 | J54: -1 | K54: 2 | L54: 6 | M54: 3 | N54: 22001 | O54: 1 | Q54: =Q48+1 -> 3093 | R54: 3142
A55: 1123 | B55: 112 | C55: 3 | D55: 3093 | E55: 感悟-112 | F55: icon | G55: 3142 | I55: 2 | J55: -1 | K55: 2 | L55: 6 | M55: 4 | N55: 22001 | O55: 1 | Q55: 3093 | R55: 3142
A56: 1124 | B56: 112 | C56: 4 | D56: 3093 | E56: 感悟-112 | F56: icon | G56: 3142 | I56: 2 | J56: -1 | K56: 2 | L56: 6 | M56: 5 | N56: 22001 | O56: 1 | Q56: 3093 | R56: 3142
A57: 1125 | B57: 112 | C57: 5 | D57: 3093 | E57: 感悟-112 | F57: icon | G57: 3142 | I57: 2 | J57: -1 | K57: 2 | L57: 6 | M57: 6 | N57: 22001 | O57: 1 | Q57: 3093 | R57: 3142
A59: =B59*10+C59 -> 1131 | B59: =B53+1 -> 113 | C59: 1 | D59: =D53+1 -> 3094 | E59: =CONCATENATE("感悟-",B59) -> 感悟-113 | F59: icon | G59: =G53+1 -> 3143 | H59: 对异常状态敌人伤害增加1% | I59: 3 | J59: -1 | K59: 3 | L59: 7 | M59: 2 | N59: 22001 | O59: 1 | Q59: =Q53+1 -> 3094 | R59: =R53+1 -> 3143
A60: =B60*10+C60 -> 1132 | B60: =B54+1 -> 113 | C60: 2 | D60: =D54+1 -> 3094 | E60: =CONCATENATE("感悟-",B60) -> 感悟-113 | F60: icon | G60: =G54+1 -> 3143 | I60: 3 | J60: -1 | K60: 3 | L60: 7 | M60: 3 | N60: 22001 | O60: 1 | Q60: =Q54+1 -> 3094 | R60: 3143
A61: 1133 | B61: 113 | C61: 3 | D61: 3094 | E61: 感悟-113 | F61: icon | G61: 3143 | I61: 3 | J61: -1 | K61: 3 | L61: 7 | M61: 4 | N61: 22001 | O61: 1 | Q61: 3094 | R61: 3143
A62: 1134 | B62: 113 | C62: 4 | D62: 3094 | E62: 感悟-113 | F62: icon | G62: 3143 | I62: 3 | J62: -1 | K62: 3 | L62: 7 | M62: 5 | N62: 22001 | O62: 1 | Q62: 3094 | R62: 3143
A63: 1135 | B63: 113 | C63: 5 | D63: 3094 | E63: 感悟-113 | F63: icon | G63: 3143 | I63: 3 | J63: -1 | K63: 3 | L63: 7 | M63: 6 | N63: 22001 | O63: 1 | Q63: 3094 | R63: 3143
A65: =B65*10+C65 -> 1141 | B65: =B59+1 -> 114 | C65: 1 | D65: =D59+1 -> 3095 | E65: =CONCATENATE("感悟-",B65) -> 感悟-114 | F65: icon | G65: =G59+1 -> 3144 | H65: 金木水火土任意一个属性伤害增加 | I65: 4 | J65: 111 | K65: 1 | L65: 5 | M65: 106;1 | N65: 22001 | O65: 1 | Q65: =Q59+1 -> 3095 | R65: =R59+1 -> 3144
A66: =B66*10+C66 -> 1142 | B66: =B60+1 -> 114 | C66: 2 | D66: =D60+1 -> 3095 | E66: =CONCATENATE("感悟-",B66) -> 感悟-114 | F66: icon | G66: =G60+1 -> 3144 | I66: 4 | J66: 111 | K66: 1 | L66: 5 | M66: 106;2 | N66: 22001 | O66: 1 | Q66: =Q60+1 -> 3095 | R66: 3144
A67: 1143 | B67: 114 | C67: 3 | D67: 3095 | E67: 感悟-114 | F67: icon | G67: 3144 | I67: 4 | J67: 111 | K67: 1 | L67: 5 | M67: 106;3 | N67: 22001 | O67: 1 | Q67: 3095 | R67: 3144
A68: 1144 | B68: 114 | C68: 4 | D68: 3095 | E68: 感悟-114 | F68: icon | G68: 3144 | I68: 4 | J68: 111 | K68: 1 | L68: 5 | M68: 106;4 | N68: 22001 | O68: 1 | Q68: 3095 | R68: 3144
A69: 1145 | B69: 114 | C69: 5 | D69: 3095 | E69: 感悟-114 | F69: icon | G69: 3144 | I69: 4 | J69: 111 | K69: 1 | L69: 5 | M69: 106;5 | N69: 22001 | O69: 1 | Q69: 3095 | R69: 3144
A71: =B71*10+C71 -> 1151 | B71: =B65+1 -> 115 | C71: 1 | D71: =D65+1 -> 3096 | E71: 火焰专精 | F71: icon | G71: =G65+1 -> 3145 | H71: 灼烧对敌人的伤害增加1% | I71: 5 | J71: 113 | K71: 2 | L71: 8 | M71: 2 | N71: 22001 | O71: 1 | Q71: =Q65+1 -> 3096 | R71: =R65+1 -> 3145
A72: =B72*10+C72 -> 1152 | B72: =B66+1 -> 115 | C72: 2 | D72: =D66+1 -> 3096 | E72: 火焰专精 | F72: icon | G72: =G66+1 -> 3145 | I72: 5 | J72: 113 | K72: 2 | L72: 8 | M72: 3 | N72: 22001 | O72: 1 | Q72: =Q66+1 -> 3096 | R72: 3145
A73: 1153 | B73: 115 | C73: 3 | D73: 3096 | E73: 火焰专精 | F73: icon | G73: 3145 | I73: 5 | J73: 113 | K73: 2 | L73: 8 | M73: 4 | N73: 22001 | O73: 1 | Q73: 3096 | R73: 3145
A74: 1154 | B74: 115 | C74: 4 | D74: 3096 | E74: 火焰专精 | F74: icon | G74: 3145 | I74: 5 | J74: 113 | K74: 2 | L74: 8 | M74: 5 | N74: 22001 | O74: 1 | Q74: 3096 | R74: 3145
A75: 1155 | B75: 115 | C75: 5 | D75: 3096 | E75: 火焰专精 | F75: icon | G75: 3145 | I75: 5 | J75: 113 | K75: 2 | L75: 8 | M75: 6 | N75: 22001 | O75: 1 | Q75: 3096 | R75: 3145
A77: =B77*10+C77 -> 1161 | B77: =B71+1 -> 116 | C77: 1 | D77: =D71+1 -> 3097 | E77: 毒专精 | F77: icon | G77: =G71+1 -> 3146 | H77: 毒照成的伤害+1%，且蔓延速度加快2% | I77: 7 | J77: 112 | K77: 3 | L77: 9 | M77: 2;5 | N77: 22001 | O77: 1 | Q77: =Q71+1 -> 3097 | R77: =R71+1 -> 3146
A78: =B78*10+C78 -> 1162 | B78: =B72+1 -> 116 | C78: 2 | D78: =D72+1 -> 3097 | E78: 毒专精 | F78: icon | G78: =G72+1 -> 3146 | I78: 7 | J78: 112 | K78: 3 | L78: 9 | M78: 3;10 | N78: 22001 | O78: 1 | Q78: =Q72+1 -> 3097 | R78: 3146
A79: 1163 | B79: 116 | C79: 3 | D79: 3097 | E79: 毒专精 | F79: icon | G79: 3146 | I79: 7 | J79: 112 | K79: 3 | L79: 9 | M79: 4;15 | N79: 22001 | O79: 1 | Q79: 3097 | R79: 3146
A80: 1164 | B80: 116 | C80: 4 | D80: 3097 | E80: 毒专精 | F80: icon | G80: 3146 | I80: 7 | J80: 112 | K80: 3 | L80: 9 | M80: 5;20 | N80: 22001 | O80: 1 | Q80: 3097 | R80: 3146
A81: 1165 | B81: 116 | C81: 5 | D81: 3097 | E81: 毒专精 | F81: icon | G81: 3146 | I81: 7 | J81: 112 | K81: 3 | L81: 9 | M81: 6;25 | N81: 22001 | O81: 1 | Q81: 3097 | R81: 3146
A83: =B83*10+C83 -> 1211 | B83: 121 | C83: 1 | D83: =D77+1 -> 3098 | E83: =CONCATENATE("感悟-",B83) -> 感悟-121 | F83: icon | G83: =G77+1 -> 3147 | H83: 功法强度+3% | L83: 2 | M83: 2 | N83: 22002 | O83: 1 | Q83: =Q77+1 -> 3098 | R83: =R77+1 -> 3147
A84: =B84*10+C84 -> 1212 | B84: 121 | C84: 2 | D84: =D78+1 -> 3098 | E84: =CONCATENATE("感悟-",B84) -> 感悟-121 | F84: icon | G84: =G78+1 -> 3147 | L84: 2 | M84: 3 | N84: 22002 | O84: 1 | Q84: =Q78+1 -> 3098 | R84: 3147
A85: 1213 | B85: 121 | C85: 3 | D85: 3098 | E85: 感悟-121 | F85: icon | G85: 3147 | L85: 2 | M85: 4 | N85: 22002 | O85: 1 | Q85: 3098 | R85: 3147
A86: 1214 | B86: 121 | C86: 4 | D86: 3098 | E86: 感悟-121 | F86: icon | G86: 3147 | L86: 2 | M86: 5 | N86: 22002 | O86: 1 | Q86: 3098 | R86: 3147
A87: 1215 | B87: 121 | C87: 5 | D87: 3098 | E87: 感悟-121 | F87: icon | G87: 3147 | L87: 2 | M87: 6 | N87: 22002 | O87: 1 | Q87: 3098 | R87: 3147
A89: =B89*10+C89 -> 1221 | B89: =B83+1 -> 122 | C89: 1 | D89: =D83+1 -> 3099 | E89: =CONCATENATE("感悟-",B89) -> 感悟-122 | F89: icon | G89: =G83+1 -> 3148 | H89: 最终伤害抵抗+1% | L89: 6 | M89: 2 | N89: 22002 | O89: 1 | Q89: =Q83+1 -> 3099 | R89: =R83+1 -> 3148
A90: =B90*10+C90 -> 1222 | B90: =B84+1 -> 122 | C90: 2 | D90: =D84+1 -> 3099 | E90: =CONCATENATE("感悟-",B90) -> 感悟-122 | F90: icon | G90: =G84+1 -> 3148 | L90: 6 | M90: 3 | N90: 22002 | O90: 1 | Q90: =Q84+1 -> 3099 | R90: 3148
A91: 1223 | B91: 122 | C91: 3 | D91: 3099 | E91: 感悟-122 | F91: icon | G91: 3148 | L91: 6 | M91: 4 | N91: 22002 | O91: 1 | Q91: 3099 | R91: 3148
A92: 1224 | B92: 122 | C92: 4 | D92: 3099 | E92: 感悟-122 | F92: icon | G92: 3148 | L92: 6 | M92: 5 | N92: 22002 | O92: 1 | Q92: 3099 | R92: 3148
A93: 1225 | B93: 122 | C93: 5 | D93: 3099 | E93: 感悟-122 | F93: icon | G93: 3148 | L93: 6 | M93: 6 | N93: 22002 | O93: 1 | Q93: 3099 | R93: 3148
A95: =B95*10+C95 -> 1231 | B95: =B89+1 -> 123 | C95: 1 | D95: =D89+1 -> 3100 | E95: =CONCATENATE("感悟-",B95) -> 感悟-123 | F95: icon | G95: =G89+1 -> 3149 | H95: 对异常状态敌人伤害增加1% | L95: 7 | M95: 2 | N95: 22002 | O95: 1 | Q95: =Q89+1 -> 3100 | R95: =R89+1 -> 3149
A96: =B96*10+C96 -> 1232 | B96: =B90+1 -> 123 | C96: 2 | D96: =D90+1 -> 3100 | E96: =CONCATENATE("感悟-",B96) -> 感悟-123 | F96: icon | G96: =G90+1 -> 3149 | L96: 7 | M96: 3 | N96: 22002 | O96: 1 | Q96: =Q90+1 -> 3100 | R96: 3149
A97: 1233 | B97: 123 | C97: 3 | D97: 3100 | E97: 感悟-123 | F97: icon | G97: 3149 | L97: 7 | M97: 4 | N97: 22002 | O97: 1 | Q97: 3100 | R97: 3149
A98: 1234 | B98: 123 | C98: 4 | D98: 3100 | E98: 感悟-123 | F98: icon | G98: 3149 | L98: 7 | M98: 5 | N98: 22002 | O98: 1 | Q98: 3100 | R98: 3149
A99: 1235 | B99: 123 | C99: 5 | D99: 3100 | E99: 感悟-123 | F99: icon | G99: 3149 | L99: 7 | M99: 6 | N99: 22002 | O99: 1 | Q99: 3100 | R99: 3149
A101: =B101*10+C101 -> 1241 | B101: =B95+1 -> 124 | C101: 1 | D101: =D95+1 -> 3101 | E101: =CONCATENATE("感悟-",B101) -> 感悟-124 | F101: icon | G101: =G95+1 -> 3150 | H101: 金木水火土任意一个属性伤害增加 | L101: 5 | M101: 106;1 | N101: 22002 | O101: 1 | Q101: =Q95+1 -> 3101 | R101: =R95+1 -> 3150
A102: =B102*10+C102 -> 1242 | B102: =B96+1 -> 124 | C102: 2 | D102: =D96+1 -> 3101 | E102: =CONCATENATE("感悟-",B102) -> 感悟-124 | F102: icon | G102: =G96+1 -> 3150 | L102: 5 | M102: 106;2 | N102: 22002 | O102: 1 | Q102: =Q96+1 -> 3101 | R102: 3150
A103: 1243 | B103: 124 | C103: 3 | D103: 3101 | E103: 感悟-124 | F103: icon | G103: 3150 | L103: 5 | M103: 106;3 | N103: 22002 | O103: 1 | Q103: 3101 | R103: 3150
A104: 1244 | B104: 124 | C104: 4 | D104: 3101 | E104: 感悟-124 | F104: icon | G104: 3150 | L104: 5 | M104: 106;4 | N104: 22002 | O104: 1 | Q104: 3101 | R104: 3150
A105: 1245 | B105: 124 | C105: 5 | D105: 3101 | E105: 感悟-124 | F105: icon | G105: 3150 | L105: 5 | M105: 106;5 | N105: 22002 | O105: 1 | Q105: 3101 | R105: 3150
A107: =B107*10+C107 -> 1251 | B107: =B101+1 -> 125 | C107: 1 | D107: =D101+1 -> 3102 | E107: 毒专精 | F107: icon | G107: =G101+1 -> 3151 | H107: 毒照成的伤害+1%，且蔓延速度加快2% | L107: 9 | M107: 2;5 | N107: 22002 | O107: 1 | Q107: =Q101+1 -> 3102 | R107: =R101+1 -> 3151
A108: =B108*10+C108 -> 1252 | B108: =B102+1 -> 125 | C108: 2 | D108: =D102+1 -> 3102 | E108: 毒专精 | F108: icon | G108: =G102+1 -> 3151 | L108: 9 | M108: 3;10 | N108: 22002 | O108: 1 | Q108: =Q102+1 -> 3102 | R108: 3151
A109: 1253 | B109: 125 | C109: 3 | D109: 3102 | E109: 毒专精 | F109: icon | G109: 3151 | L109: 9 | M109: 4;15 | N109: 22002 | O109: 1 | Q109: 3102 | R109: 3151
A110: 1254 | B110: 125 | C110: 4 | D110: 3102 | E110: 毒专精 | F110: icon | G110: 3151 | L110: 9 | M110: 5;20 | N110: 22002 | O110: 1 | Q110: 3102 | R110: 3151
A111: 1255 | B111: 125 | C111: 5 | D111: 3102 | E111: 毒专精 | F111: icon | G111: 3151 | L111: 9 | M111: 6;25 | N111: 22002 | O111: 1 | Q111: 3102 | R111: 3151
A113: =B113*10+C113 -> 1261 | B113: =B107+1 -> 126 | C113: 1 | D113: =D107+1 -> 3103 | E113: 流血专精 | F113: icon | G113: =G107+1 -> 3152 | H113: 敌人流血伤害+1% | L113: 10 | M113: 2 | N113: 22002 | O113: 1 | Q113: =Q107+1 -> 3103 | R113: =R107+1 -> 3152
A114: =B114*10+C114 -> 1262 | B114: =B108+1 -> 126 | C114: 2 | D114: =D108+1 -> 3103 | E114: 流血专精 | F114: icon | G114: =G108+1 -> 3152 | L114: 10 | M114: 3 | N114: 22002 | O114: 1 | Q114: =Q108+1 -> 3103 | R114: 3152
A115: 1263 | B115: 126 | C115: 3 | D115: 3103 | E115: 流血专精 | F115: icon | G115: 3152 | L115: 10 | M115: 4 | N115: 22002 | O115: 1 | Q115: 3103 | R115: 3152
A116: 1264 | B116: 126 | C116: 4 | D116: 3103 | E116: 流血专精 | F116: icon | G116: 3152 | L116: 10 | M116: 5 | N116: 22002 | O116: 1 | Q116: 3103 | R116: 3152
A117: 1265 | B117: 126 | C117: 5 | D117: 3103 | E117: 流血专精 | F117: icon | G117: 3152 | L117: 10 | M117: 6 | N117: 22002 | O117: 1 | Q117: 3103 | R117: 3152
A119: =B119*10+C119 -> 1311 | B119: 131 | C119: 1 | D119: =D113+1 -> 3104 | E119: =CONCATENATE("感悟-",B119) -> 感悟-131 | F119: icon | G119: =G113+1 -> 3153 | H119: 生命+2% | L119: 3 | M119: 2 | N119: 22003 | O119: 1 | Q119: =Q113+1 -> 3104 | R119: =R113+1 -> 3153
A120: =B120*10+C120 -> 1312 | B120: 131 | C120: 2 | D120: =D114+1 -> 3104 | E120: =CONCATENATE("感悟-",B120) -> 感悟-131 | F120: icon | G120: =G114+1 -> 3153 | L120: 3 | M120: 3 | N120: 22003 | O120: 1 | Q120: =Q114+1 -> 3104 | R120: 3153
A121: 1313 | B121: 131 | C121: 3 | D121: 3104 | E121: 感悟-131 | F121: icon | G121: 3153 | L121: 3 | M121: 4 | N121: 22003 | O121: 1 | Q121: 3104 | R121: 3153
A122: 1314 | B122: 131 | C122: 4 | D122: 3104 | E122: 感悟-131 | F122: icon | G122: 3153 | L122: 3 | M122: 5 | N122: 22003 | O122: 1 | Q122: 3104 | R122: 3153
A123: 1315 | B123: 131 | C123: 5 | D123: 3104 | E123: 感悟-131 | F123: icon | G123: 3153 | L123: 3 | M123: 6 | N123: 22003 | O123: 1 | Q123: 3104 | R123: 3153
A125: =B125*10+C125 -> 1321 | B125: =B119+1 -> 132 | C125: 1 | D125: =D119+1 -> 3105 | E125: =CONCATENATE("感悟-",B125) -> 感悟-132 | F125: icon | G125: =G119+1 -> 3154 | H125: 最终伤害抵抗+1% | L125: 6 | M125: 2 | N125: 22003 | O125: 1 | Q125: =Q119+1 -> 3105 | R125: =R119+1 -> 3154
A126: =B126*10+C126 -> 1322 | B126: =B120+1 -> 132 | C126: 2 | D126: =D120+1 -> 3105 | E126: =CONCATENATE("感悟-",B126) -> 感悟-132 | F126: icon | G126: =G120+1 -> 3154 | L126: 6 | M126: 3 | N126: 22003 | O126: 1 | Q126: =Q120+1 -> 3105 | R126: 3154
A127: 1323 | B127: 132 | C127: 3 | D127: 3105 | E127: 感悟-132 | F127: icon | G127: 3154 | L127: 6 | M127: 4 | N127: 22003 | O127: 1 | Q127: 3105 | R127: 3154
A128: 1324 | B128: 132 | C128: 4 | D128: 3105 | E128: 感悟-132 | F128: icon | G128: 3154 | L128: 6 | M128: 5 | N128: 22003 | O128: 1 | Q128: 3105 | R128: 3154
A129: 1325 | B129: 132 | C129: 5 | D129: 3105 | E129: 感悟-132 | F129: icon | G129: 3154 | L129: 6 | M129: 6 | N129: 22003 | O129: 1 | Q129: 3105 | R129: 3154
A131: =B131*10+C131 -> 1331 | B131: =B125+1 -> 133 | C131: 1 | D131: =D125+1 -> 3106 | E131: =CONCATENATE("感悟-",B131) -> 感悟-133 | F131: icon | G131: =G125+1 -> 3155 | H131: 对异常状态敌人伤害增加1% | L131: 7 | M131: 2 | N131: 22003 | O131: 1 | Q131: =Q125+1 -> 3106 | R131: =R125+1 -> 3155
A132: =B132*10+C132 -> 1332 | B132: =B126+1 -> 133 | C132: 2 | D132: =D126+1 -> 3106 | E132: =CONCATENATE("感悟-",B132) -> 感悟-133 | F132: icon | G132: =G126+1 -> 3155 | L132: 7 | M132: 3 | N132: 22003 | O132: 1 | Q132: =Q126+1 -> 3106 | R132: 3155
A133: 1333 | B133: 133 | C133: 3 | D133: 3106 | E133: 感悟-133 | F133: icon | G133: 3155 | L133: 7 | M133: 4 | N133: 22003 | O133: 1 | Q133: 3106 | R133: 3155
A134: 1334 | B134: 133 | C134: 4 | D134: 3106 | E134: 感悟-133 | F134: icon | G134: 3155 | L134: 7 | M134: 5 | N134: 22003 | O134: 1 | Q134: 3106 | R134: 3155
A135: 1335 | B135: 133 | C135: 5 | D135: 3106 | E135: 感悟-133 | F135: icon | G135: 3155 | L135: 7 | M135: 6 | N135: 22003 | O135: 1 | Q135: 3106 | R135: 3155
A137: =B137*10+C137 -> 1341 | B137: =B131+1 -> 134 | C137: 1 | D137: =D131+1 -> 3107 | E137: =CONCATENATE("感悟-",B137) -> 感悟-134 | F137: icon | G137: =G131+1 -> 3156 | H137: 金木水火土任意一个属性伤害增加 | L137: 5 | M137: 106;1 | N137: 22003 | O137: 1 | Q137: =Q131+1 -> 3107 | R137: =R131+1 -> 3156
A138: =B138*10+C138 -> 1342 | B138: =B132+1 -> 134 | C138: 2 | D138: =D132+1 -> 3107 | E138: =CONCATENATE("感悟-",B138) -> 感悟-134 | F138: icon | G138: =G132+1 -> 3156 | L138: 5 | M138: 106;2 | N138: 22003 | O138: 1 | Q138: =Q132+1 -> 3107 | R138: 3156
A139: 1343 | B139: 134 | C139: 3 | D139: 3107 | E139: 感悟-134 | F139: icon | G139: 3156 | L139: 5 | M139: 106;3 | N139: 22003 | O139: 1 | Q139: 3107 | R139: 3156
A140: 1344 | B140: 134 | C140: 4 | D140: 3107 | E140: 感悟-134 | F140: icon | G140: 3156 | L140: 5 | M140: 106;4 | N140: 22003 | O140: 1 | Q140: 3107 | R140: 3156
A141: 1345 | B141: 134 | C141: 5 | D141: 3107 | E141: 感悟-134 | F141: icon | G141: 3156 | L141: 5 | M141: 106;5 | N141: 22003 | O141: 1 | Q141: 3107 | R141: 3156
A143: =B143*10+C143 -> 1351 | B143: =B137+1 -> 135 | C143: 1 | D143: =D137+1 -> 3108 | E143: 流血专精 | F143: icon | G143: =G137+1 -> 3157 | H143: 敌人流血伤害+1% | L143: 10 | M143: 2 | N143: 22003 | O143: 1 | Q143: =Q137+1 -> 3108 | R143: =R137+1 -> 3157
A144: =B144*10+C144 -> 1352 | B144: =B138+1 -> 135 | C144: 2 | D144: =D138+1 -> 3108 | E144: 流血专精 | F144: icon | G144: =G138+1 -> 3157 | L144: 10 | M144: 3 | N144: 22003 | O144: 1 | Q144: =Q138+1 -> 3108 | R144: 3157
A145: 1353 | B145: 135 | C145: 3 | D145: 3108 | E145: 流血专精 | F145: icon | G145: 3157 | L145: 10 | M145: 4 | N145: 22003 | O145: 1 | Q145: 3108 | R145: 3157
A146: 1354 | B146: 135 | C146: 4 | D146: 3108 | E146: 流血专精 | F146: icon | G146: 3157 | L146: 10 | M146: 5 | N146: 22003 | O146: 1 | Q146: 3108 | R146: 3157
A147: 1355 | B147: 135 | C147: 5 | D147: 3108 | E147: 流血专精 | F147: icon | G147: 3157 | L147: 10 | M147: 6 | N147: 22003 | O147: 1 | Q147: 3108 | R147: 3157
A149: =B149*10+C149 -> 1361 | B149: =B143+1 -> 136 | C149: 1 | D149: =D143+1 -> 3109 | E149: 火焰专精 | F149: icon | G149: =G143+1 -> 3158 | H149: 灼烧对敌人的伤害增加1% | L149: 8 | M149: 2 | N149: 22003 | O149: 1 | Q149: =Q143+1 -> 3109 | R149: =R143+1 -> 3158
A150: =B150*10+C150 -> 1362 | B150: =B144+1 -> 136 | C150: 2 | D150: =D144+1 -> 3109 | E150: 火焰专精 | F150: icon | G150: =G144+1 -> 3158 | L150: 8 | M150: 3 | N150: 22003 | O150: 1 | Q150: =Q144+1 -> 3109 | R150: 3158
A151: 1363 | B151: 136 | C151: 3 | D151: 3109 | E151: 火焰专精 | F151: icon | G151: 3158 | L151: 8 | M151: 4 | N151: 22003 | O151: 1 | Q151: 3109 | R151: 3158
A152: 1364 | B152: 136 | C152: 4 | D152: 3109 | E152: 火焰专精 | F152: icon | G152: 3158 | L152: 8 | M152: 5 | N152: 22003 | O152: 1 | Q152: 3109 | R152: 3158
A153: 1365 | B153: 136 | C153: 5 | D153: 3109 | E153: 火焰专精 | F153: icon | G153: 3158 | L153: 8 | M153: 6 | N153: 22003 | O153: 1 | Q153: 3109 | R153: 3158
A155: =B155*10+C155 -> 1411 | B155: 141 | C155: 1 | D155: =D149+1 -> 3110 | E155: =CONCATENATE("感悟-",B155) -> 感悟-141 | F155: icon | G155: =G149+1 -> 3159 | H155: 防御+5% | L155: 4 | M155: 4 | N155: 22004 | O155: 1 | Q155: =Q149+1 -> 3110 | R155: =R149+1 -> 3159
A156: =B156*10+C156 -> 1412 | B156: 141 | C156: 2 | D156: =D150+1 -> 3110 | E156: =CONCATENATE("感悟-",B156) -> 感悟-141 | F156: icon | G156: =G150+1 -> 3159 | L156: 4 | M156: 6 | N156: 22004 | O156: 1 | Q156: =Q150+1 -> 3110 | R156: 3159
A157: 1413 | B157: 141 | C157: 3 | D157: 3110 | E157: 感悟-141 | F157: icon | G157: 3159 | L157: 4 | M157: 8 | N157: 22004 | O157: 1 | Q157: 3110 | R157: 3159
A158: 1414 | B158: 141 | C158: 4 | D158: 3110 | E158: 感悟-141 | F158: icon | G158: 3159 | L158: 4 | M158: 10 | N158: 22004 | O158: 1 | Q158: 3110 | R158: 3159
A159: 1415 | B159: 141 | C159: 5 | D159: 3110 | E159: 感悟-141 | F159: icon | G159: 3159 | L159: 4 | M159: 12 | N159: 22004 | O159: 1 | Q159: 3110 | R159: 3159
A161: =B161*10+C161 -> 1421 | B161: =B155+1 -> 142 | C161: 1 | D161: =D155+1 -> 3111 | E161: =CONCATENATE("感悟-",B161) -> 感悟-142 | F161: icon | G161: =G155+1 -> 3160 | H161: 最终伤害抵抗+1% | L161: 6 | M161: 2 | N161: 22004 | O161: 1 | Q161: =Q155+1 -> 3111 | R161: =R155+1 -> 3160
A162: =B162*10+C162 -> 1422 | B162: =B156+1 -> 142 | C162: 2 | D162: =D156+1 -> 3111 | E162: =CONCATENATE("感悟-",B162) -> 感悟-142 | F162: icon | G162: =G156+1 -> 3160 | L162: 6 | M162: 3 | N162: 22004 | O162: 1 | Q162: =Q156+1 -> 3111 | R162: 3160
A163: 1423 | B163: 142 | C163: 3 | D163: 3111 | E163: 感悟-142 | F163: icon | G163: 3160 | L163: 6 | M163: 4 | N163: 22004 | O163: 1 | Q163: 3111 | R163: 3160
A164: 1424 | B164: 142 | C164: 4 | D164: 3111 | E164: 感悟-142 | F164: icon | G164: 3160 | L164: 6 | M164: 5 | N164: 22004 | O164: 1 | Q164: 3111 | R164: 3160
A165: 1425 | B165: 142 | C165: 5 | D165: 3111 | E165: 感悟-142 | F165: icon | G165: 3160 | L165: 6 | M165: 6 | N165: 22004 | O165: 1 | Q165: 3111 | R165: 3160
A167: =B167*10+C167 -> 1431 | B167: =B161+1 -> 143 | C167: 1 | D167: =D161+1 -> 3112 | E167: =CONCATENATE("感悟-",B167) -> 感悟-143 | F167: icon | G167: =G161+1 -> 3161 | H167: 对异常状态敌人伤害增加1% | L167: 7 | M167: 2 | N167: 22004 | O167: 1 | Q167: =Q161+1 -> 3112 | R167: =R161+1 -> 3161
A168: =B168*10+C168 -> 1432 | B168: =B162+1 -> 143 | C168: 2 | D168: =D162+1 -> 3112 | E168: =CONCATENATE("感悟-",B168) -> 感悟-143 | F168: icon | G168: =G162+1 -> 3161 | L168: 7 | M168: 3 | N168: 22004 | O168: 1 | Q168: =Q162+1 -> 3112 | R168: 3161
A169: 1433 | B169: 143 | C169: 3 | D169: 3112 | E169: 感悟-143 | F169: icon | G169: 3161 | L169: 7 | M169: 4 | N169: 22004 | O169: 1 | Q169: 3112 | R169: 3161
A170: 1434 | B170: 143 | C170: 4 | D170: 3112 | E170: 感悟-143 | F170: icon | G170: 3161 | L170: 7 | M170: 5 | N170: 22004 | O170: 1 | Q170: 3112 | R170: 3161
A171: 1435 | B171: 143 | C171: 5 | D171: 3112 | E171: 感悟-143 | F171: icon | G171: 3161 | L171: 7 | M171: 6 | N171: 22004 | O171: 1 | Q171: 3112 | R171: 3161
A173: =B173*10+C173 -> 1441 | B173: =B167+1 -> 144 | C173: 1 | D173: =D167+1 -> 3113 | E173: =CONCATENATE("感悟-",B173) -> 感悟-144 | F173: icon | G173: =G167+1 -> 3162 | H173: 金木水火土任意一个属性伤害增加 | L173: 5 | M173: 106;1 | N173: 22004 | O173: 1 | Q173: =Q167+1 -> 3113 | R173: =R167+1 -> 3162
A174: =B174*10+C174 -> 1442 | B174: =B168+1 -> 144 | C174: 2 | D174: =D168+1 -> 3113 | E174: =CONCATENATE("感悟-",B174) -> 感悟-144 | F174: icon | G174: =G168+1 -> 3162 | L174: 5 | M174: 106;2 | N174: 22004 | O174: 1 | Q174: =Q168+1 -> 3113 | R174: 3162
A175: 1443 | B175: 144 | C175: 3 | D175: 3113 | E175: 感悟-144 | F175: icon | G175: 3162 | L175: 5 | M175: 106;3 | N175: 22004 | O175: 1 | Q175: 3113 | R175: 3162
A176: 1444 | B176: 144 | C176: 4 | D176: 3113 | E176: 感悟-144 | F176: icon | G176: 3162 | L176: 5 | M176: 106;4 | N176: 22004 | O176: 1 | Q176: 3113 | R176: 3162
A177: 1445 | B177: 144 | C177: 5 | D177: 3113 | E177: 感悟-144 | F177: icon | G177: 3162 | L177: 5 | M177: 106;5 | N177: 22004 | O177: 1 | Q177: 3113 | R177: 3162
A179: =B179*10+C179 -> 1451 | B179: =B173+1 -> 145 | C179: 1 | D179: =D173+1 -> 3114 | E179: 寒气专精 | F179: icon | G179: =G173+1 -> 3163 | H179: 减速效果+1% | L179: 11 | M179: 2 | N179: 22004 | O179: 1 | Q179: =Q173+1 -> 3114 | R179: =R173+1 -> 3163
A180: =B180*10+C180 -> 1452 | B180: =B174+1 -> 145 | C180: 2 | D180: =D174+1 -> 3114 | E180: 寒气专精 | F180: icon | G180: =G174+1 -> 3163 | L180: 11 | M180: 3 | N180: 22004 | O180: 1 | Q180: =Q174+1 -> 3114 | R180: 3163
A181: 1453 | B181: 145 | C181: 3 | D181: 3114 | E181: 寒气专精 | F181: icon | G181: 3163 | L181: 11 | M181: 4 | N181: 22004 | O181: 1 | Q181: 3114 | R181: 3163
A182: 1454 | B182: 145 | C182: 4 | D182: 3114 | E182: 寒气专精 | F182: icon | G182: 3163 | L182: 11 | M182: 5 | N182: 22004 | O182: 1 | Q182: 3114 | R182: 3163
A183: 1455 | B183: 145 | C183: 5 | D183: 3114 | E183: 寒气专精 | F183: icon | G183: 3163 | L183: 11 | M183: 6 | N183: 22004 | O183: 1 | Q183: 3114 | R183: 3163
A185: =B185*10+C185 -> 1461 | B185: =B179+1 -> 146 | C185: 1 | D185: =D179+1 -> 3115 | E185: 土专精 | F185: icon | G185: =G179+1 -> 3164 | H185: 提升细尘的累计速度（加快封锁经脉） | L185: 12 | M185: 2 | N185: 22004 | O185: 1 | Q185: =Q179+1 -> 3115 | R185: =R179+1 -> 3164
A186: =B186*10+C186 -> 1462 | B186: =B180+1 -> 146 | C186: 2 | D186: =D180+1 -> 3115 | E186: 土专精 | F186: icon | G186: =G180+1 -> 3164 | L186: 12 | M186: 3 | N186: 22004 | O186: 1 | Q186: =Q180+1 -> 3115 | R186: 3164
A187: 1463 | B187: 146 | C187: 3 | D187: 3115 | E187: 土专精 | F187: icon | G187: 3164 | L187: 12 | M187: 4 | N187: 22004 | O187: 1 | Q187: 3115 | R187: 3164
A188: 1464 | B188: 146 | C188: 4 | D188: 3115 | E188: 土专精 | F188: icon | G188: 3164 | L188: 12 | M188: 5 | N188: 22004 | O188: 1 | Q188: 3115 | R188: 3164
A189: 1465 | B189: 146 | C189: 5 | D189: 3115 | E189: 土专精 | F189: icon | G189: 3164 | L189: 12 | M189: 6 | N189: 22004 | O189: 1 | Q189: 3115 | R189: 3164
A191: =B191*10+C191 -> 1511 | B191: 151 | C191: 1 | D191: =D185+1 -> 3116 | E191: =CONCATENATE("感悟-",B191) -> 感悟-151 | F191: icon | G191: =G185+1 -> 3165 | H191: 攻击+2% | L191: 1 | M191: 2 | N191: 22005 | O191: 1 | Q191: =Q185+1 -> 3116 | R191: =R185+1 -> 3165
A192: =B192*10+C192 -> 1512 | B192: =B191 -> 151 | C192: 2 | D192: =D186+1 -> 3116 | E192: =CONCATENATE("感悟-",B192) -> 感悟-151 | F192: icon | G192: =G186+1 -> 3165 | L192: 1 | M192: 3 | N192: 22005 | O192: 1 | Q192: =Q186+1 -> 3116 | R192: 3165
A193: 1513 | B193: =B192 -> 151 | C193: 3 | D193: 3116 | E193: 感悟-151 | F193: icon | G193: 3165 | L193: 1 | M193: 4 | N193: 22005 | O193: 1 | Q193: 3116 | R193: 3165
A194: 1514 | B194: 151 | C194: 4 | D194: 3116 | E194: 感悟-151 | F194: icon | G194: 3165 | L194: 1 | M194: 5 | N194: 22005 | O194: 1 | Q194: 3116 | R194: 3165
A195: 1515 | B195: 151 | C195: 5 | D195: 3116 | E195: 感悟-151 | F195: icon | G195: 3165 | L195: 1 | M195: 6 | N195: 22005 | O195: 1 | Q195: 3116 | R195: 3165
A197: =B197*10+C197 -> 1521 | B197: =B191+1 -> 152 | C197: 1 | D197: =D191+1 -> 3117 | E197: =CONCATENATE("感悟-",B197) -> 感悟-152 | F197: icon | G197: =G191+1 -> 3166 | H197: 最终伤害抵抗+1% | L197: 6 | M197: 2 | N197: 22005 | O197: 1 | Q197: =Q191+1 -> 3117 | R197: =R191+1 -> 3166
A198: =B198*10+C198 -> 1522 | B198: =B192+1 -> 152 | C198: 2 | D198: =D192+1 -> 3117 | E198: =CONCATENATE("感悟-",B198) -> 感悟-152 | F198: icon | G198: =G192+1 -> 3166 | L198: 6 | M198: 3 | N198: 22005 | O198: 1 | Q198: =Q192+1 -> 3117 | R198: 3166
A199: 1523 | B199: 152 | C199: 3 | D199: 3117 | E199: 感悟-152 | F199: icon | G199: 3166 | L199: 6 | M199: 4 | N199: 22005 | O199: 1 | Q199: 3117 | R199: 3166
A200: 1524 | B200: 152 | C200: 4 | D200: 3117 | E200: 感悟-152 | F200: icon | G200: 3166 | L200: 6 | M200: 5 | N200: 22005 | O200: 1 | Q200: 3117 | R200: 3166
A201: 1525 | B201: 152 | C201: 5 | D201: 3117 | E201: 感悟-152 | F201: icon | G201: 3166 | L201: 6 | M201: 6 | N201: 22005 | O201: 1 | Q201: 3117 | R201: 3166
A203: =B203*10+C203 -> 1531 | B203: =B197+1 -> 153 | C203: 1 | D203: =D197+1 -> 3118 | E203: =CONCATENATE("感悟-",B203) -> 感悟-153 | F203: icon | G203: =G197+1 -> 3167 | H203: 对异常状态敌人伤害增加1% | L203: 7 | M203: 2 | N203: 22005 | O203: 1 | Q203: =Q197+1 -> 3118 | R203: =R197+1 -> 3167
A204: =B204*10+C204 -> 1532 | B204: =B198+1 -> 153 | C204: 2 | D204: =D198+1 -> 3118 | E204: =CONCATENATE("感悟-",B204) -> 感悟-153 | F204: icon | G204: =G198+1 -> 3167 | L204: 7 | M204: 3 | N204: 22005 | O204: 1 | Q204: =Q198+1 -> 3118 | R204: 3167
A205: 1533 | B205: 153 | C205: 3 | D205: 3118 | E205: 感悟-153 | F205: icon | G205: 3167 | L205: 7 | M205: 4 | N205: 22005 | O205: 1 | Q205: 3118 | R205: 3167
A206: 1534 | B206: 153 | C206: 4 | D206: 3118 | E206: 感悟-153 | F206: icon | G206: 3167 | L206: 7 | M206: 5 | N206: 22005 | O206: 1 | Q206: 3118 | R206: 3167
A207: 1535 | B207: 153 | C207: 5 | D207: 3118 | E207: 感悟-153 | F207: icon | G207: 3167 | L207: 7 | M207: 6 | N207: 22005 | O207: 1 | Q207: 3118 | R207: 3167
A209: =B209*10+C209 -> 1541 | B209: =B203+1 -> 154 | C209: 1 | D209: =D203+1 -> 3119 | E209: =CONCATENATE("感悟-",B209) -> 感悟-154 | F209: icon | G209: =G203+1 -> 3168 | H209: 金木水火土任意一个属性伤害增加 | L209: 5 | M209: 106;1 | N209: 22005 | O209: 1 | Q209: =Q203+1 -> 3119 | R209: =R203+1 -> 3168
A210: =B210*10+C210 -> 1542 | B210: =B204+1 -> 154 | C210: 2 | D210: =D204+1 -> 3119 | E210: =CONCATENATE("感悟-",B210) -> 感悟-154 | F210: icon | G210: =G204+1 -> 3168 | L210: 5 | M210: 106;2 | N210: 22005 | O210: 1 | Q210: =Q204+1 -> 3119 | R210: 3168
A211: 1543 | B211: 154 | C211: 3 | D211: 3119 | E211: 感悟-154 | F211: icon | G211: 3168 | L211: 5 | M211: 106;3 | N211: 22005 | O211: 1 | Q211: 3119 | R211: 3168
A212: 1544 | B212: 154 | C212: 4 | D212: 3119 | E212: 感悟-154 | F212: icon | G212: 3168 | L212: 5 | M212: 106;4 | N212: 22005 | O212: 1 | Q212: 3119 | R212: 3168
A213: 1545 | B213: 154 | C213: 5 | D213: 3119 | E213: 感悟-154 | F213: icon | G213: 3168 | L213: 5 | M213: 106;5 | N213: 22005 | O213: 1 | Q213: 3119 | R213: 3168
A215: =B215*10+C215 -> 1551 | B215: =B209+1 -> 155 | C215: 1 | D215: =D209+1 -> 3120 | E215: 土专精 | F215: icon | G215: =G209+1 -> 3169 | H215: 提升细尘的累计速度（加快封锁经脉） | L215: 12 | M215: 2 | N215: 22005 | O215: 1 | Q215: =Q209+1 -> 3120 | R215: =R209+1 -> 3169
A216: =B216*10+C216 -> 1552 | B216: =B210+1 -> 155 | C216: 2 | D216: =D210+1 -> 3120 | E216: 土专精 | F216: icon | G216: =G210+1 -> 3169 | L216: 12 | M216: 3 | N216: 22005 | O216: 1 | Q216: =Q210+1 -> 3120 | R216: 3169
A217: 1553 | B217: 155 | C217: 3 | D217: 3120 | E217: 土专精 | F217: icon | G217: 3169 | L217: 12 | M217: 4 | N217: 22005 | O217: 1 | Q217: 3120 | R217: 3169
A218: 1554 | B218: 155 | C218: 4 | D218: 3120 | E218: 土专精 | F218: icon | G218: 3169 | L218: 12 | M218: 5 | N218: 22005 | O218: 1 | Q218: 3120 | R218: 3169
A219: 1555 | B219: 155 | C219: 5 | D219: 3120 | E219: 土专精 | F219: icon | G219: 3169 | L219: 12 | M219: 6 | N219: 22005 | O219: 1 | Q219: 3120 | R219: 3169
A221: =B221*10+C221 -> 1561 | B221: =B215+1 -> 156 | C221: 1 | D221: =D215+1 -> 3121 | E221: 寒气专精 | F221: icon | G221: =G215+1 -> 3170 | H221: 减速效果+1% | L221: 11 | M221: 2 | N221: 22005 | O221: 1 | Q221: =Q215+1 -> 3121 | R221: =R215+1 -> 3170
A222: =B222*10+C222 -> 1562 | B222: =B216+1 -> 156 | C222: 2 | D222: =D216+1 -> 3121 | E222: 寒气专精 | F222: icon | G222: =G216+1 -> 3170 | L222: 11 | M222: 3 | N222: 22005 | O222: 1 | Q222: =Q216+1 -> 3121 | R222: 3170
A223: 1563 | B223: 156 | C223: 3 | D223: 3121 | E223: 寒气专精 | F223: icon | G223: 3170 | L223: 11 | M223: 4 | N223: 22005 | O223: 1 | Q223: 3121 | R223: 3170
A224: 1564 | B224: 156 | C224: 4 | D224: 3121 | E224: 寒气专精 | F224: icon | G224: 3170 | L224: 11 | M224: 5 | N224: 22005 | O224: 1 | Q224: 3121 | R224: 3170
A225: 1565 | B225: 156 | C225: 5 | D225: 3121 | E225: 寒气专精 | F225: icon | G225: 3170 | L225: 11 | M225: 6 | N225: 22005 | O225: 1 | Q225: 3121 | R225: 3170
A227: =B227*10+C227 -> 1611 | B227: 161 | C227: 1 | D227: =D221+1 -> 3122 | E227: =CONCATENATE("感悟-",B227) -> 感悟-161 | F227: icon | G227: =G221+1 -> 3171 | H227: 攻击+2% | L227: 1 | M227: 2 | N227: 22006 | O227: 1 | Q227: =Q221+1 -> 3122 | R227: =R221+1 -> 3171
A228: =B228*10+C228 -> 1612 | B228: =B227 -> 161 | C228: 2 | D228: =D222+1 -> 3122 | E228: =CONCATENATE("感悟-",B228) -> 感悟-161 | F228: icon | G228: =G222+1 -> 3171 | L228: 1 | M228: 3 | N228: 22006 | O228: 1 | Q228: =Q222+1 -> 3122 | R228: 3171
A229: 1613 | B229: =B228 -> 161 | C229: 3 | D229: 3122 | E229: 感悟-161 | F229: icon | G229: 3171 | L229: 1 | M229: 4 | N229: 22006 | O229: 1 | Q229: 3122 | R229: 3171
A230: 1614 | B230: 161 | C230: 4 | D230: 3122 | E230: 感悟-161 | F230: icon | G230: 3171 | L230: 1 | M230: 5 | N230: 22006 | O230: 1 | Q230: 3122 | R230: 3171
A231: 1615 | B231: 161 | C231: 5 | D231: 3122 | E231: 感悟-161 | F231: icon | G231: 3171 | L231: 1 | M231: 6 | N231: 22006 | O231: 1 | Q231: 3122 | R231: 3171
A233: =B233*10+C233 -> 1621 | B233: =B227+1 -> 162 | C233: 1 | D233: =D227+1 -> 3123 | E233: =CONCATENATE("感悟-",B233) -> 感悟-162 | F233: icon | G233: =G227+1 -> 3172 | H233: 最终伤害抵抗+1% | L233: 6 | M233: 2 | N233: 22006 | O233: 1 | Q233: =Q227+1 -> 3123 | R233: =R227+1 -> 3172
A234: =B234*10+C234 -> 1622 | B234: =B228+1 -> 162 | C234: 2 | D234: =D228+1 -> 3123 | E234: =CONCATENATE("感悟-",B234) -> 感悟-162 | F234: icon | G234: =G228+1 -> 3172 | L234: 6 | M234: 3 | N234: 22006 | O234: 1 | Q234: =Q228+1 -> 3123 | R234: 3172
A235: 1623 | B235: 162 | C235: 3 | D235: 3123 | E235: 感悟-162 | F235: icon | G235: 3172 | L235: 6 | M235: 4 | N235: 22006 | O235: 1 | Q235: 3123 | R235: 3172
A236: 1624 | B236: 162 | C236: 4 | D236: 3123 | E236: 感悟-162 | F236: icon | G236: 3172 | L236: 6 | M236: 5 | N236: 22006 | O236: 1 | Q236: 3123 | R236: 3172
A237: 1625 | B237: 162 | C237: 5 | D237: 3123 | E237: 感悟-162 | F237: icon | G237: 3172 | L237: 6 | M237: 6 | N237: 22006 | O237: 1 | Q237: 3123 | R237: 3172
A239: =B239*10+C239 -> 1631 | B239: =B233+1 -> 163 | C239: 1 | D239: =D233+1 -> 3124 | E239: =CONCATENATE("感悟-",B239) -> 感悟-163 | F239: icon | G239: =G233+1 -> 3173 | H239: 对异常状态敌人伤害增加1% | L239: 7 | M239: 2 | N239: 22006 | O239: 1 | Q239: =Q233+1 -> 3124 | R239: =R233+1 -> 3173
A240: =B240*10+C240 -> 1632 | B240: =B234+1 -> 163 | C240: 2 | D240: =D234+1 -> 3124 | E240: =CONCATENATE("感悟-",B240) -> 感悟-163 | F240: icon | G240: =G234+1 -> 3173 | L240: 7 | M240: 3 | N240: 22006 | O240: 1 | Q240: =Q234+1 -> 3124 | R240: 3173
... 48 more rows

Sheet 条件类型
A1: 效果类型 | B1: 参数1 | C1: 参数2
A2: 1=攻击力 | B2: 加的值
A3: 2=功法强度 | B3: 加的值
A4: 3=生命值 | B4: 加的值
A5: 4=防御 | B5: 加的值
A6: 5=灵根 | B6: 灵根类型 | C6: 加的值
A7: 6=最终伤害抵抗 | B7: 加的值
A8: 7=异常状态伤害增加 | B8: 加的值
A9: 99=skill表ID | B9: 技能表Id
A10: 8=火焰专精 | B10: 增加的伤害百分比 | D10: 灼烧对敌人的伤害增加1%
A11: 9=毒专精 | B11: 伤害百分比 | C11: 蔓延速度加快百分比 | D11: 毒照成的伤害+1%，且蔓延速度加快2%
A12: 10=流血专精 | B12: 流血伤害百分比 | D12: 敌人流血伤害+1%
A13: 11=寒气专精 | B13: 减速效果增加百分比 | D13: 减速效果+1%
A14: 12=土专精 | B14: 速度提升百分比 | D14: 提升细尘的累计速度（加快封锁经脉）
